{"text_format":"3","workbook":"xlsx","n_sheets":4,"sheets":["الأحداث","التقويم","إصدار الطباعة","المسؤول"],"not_rendered":{"defined_names":18},"read":"whole","date_system":"1900"}

{"sheet":"الأحداث","index":0,"n_rows":38,"n_cols":5,"rows_kept":38}
[]
[null,"مخطط حدث"]
[null,"المجتمع الشهري"]
[]
[]
[]
[]
[null,"التاريخ","اليوم","الشهر","اسم الحدث"]
[null,"2016-07-01",{"$f":"IF(ISBLANK(tblEvents[[#This Row],[التاريخ]]),\"\",UPPER(TEXT(tblEvents[[#This Row],[التاريخ]],\"ddd\")))","v":"الجمعة"},{"$f":"IF(ISBLANK(tblEvents[[#This Row],[التاريخ]]),\"\",UPPER(TEXT(tblEvents[[#This Row],[التاريخ]],\"mmm\")))","v":"يوليه"},"حديقة المجتمع"]
[null,"2016-07-01",{"$f":"IF(ISBLANK(tblEvents[[#This Row],[التاريخ]]),\"\",UPPER(TEXT(tblEvents[[#This Row],[التاريخ]],\"ddd\")))","v":"الجمعة"},{"$f":"IF(ISBLANK(tblEvents[[#This Row],[التاريخ]]),\"\",UPPER(TEXT(tblEvents[[#This Row],[التاريخ]],\"mmm\")))","v":"يوليه"},"اجتماع مجلس البلدية"]
[null,"2016-07-02",{"$f":"IF(ISBLANK(tblEvents[[#This Row],[التاريخ]]),\"\",UPPER(TEXT(tblEvents[[#This Row],[التاريخ]],\"ddd\")))","v":"السبت"},{"$f":"IF(ISBLANK(tblEvents[[#This Row],[التاريخ]]),\"\",UPPER(TEXT(tblEvents[[#This Row],[التاريخ]],\"mmm\")))","v":"يوليه"},"حديقة المجتمع"]
[null,"2016-07-03",{"$f":"IF(ISBLANK(tblEvents[[#This Row],[التاريخ]]),\"\",UPPER(TEXT(tblEvents[[#This Row],[التاريخ]],\"ddd\")))","v":"الأحد"},{"$f":"IF(ISBLANK(tblEvents[[#This Row],[التاريخ]]),\"\",UPPER(TEXT(tblEvents[[#This Row],[التاريخ]],\"mmm\")))","v":"يوليه"},"ليلة لمشاهدة الأفلام في المنتزه"]
[null,"2016-07-08",{"$f":"IF(ISBLANK(tblEvents[[#This Row],[التاريخ]]),\"\",UPPER(TEXT(tblEvents[[#This Row],[التاريخ]],\"ddd\")))","v":"الجمعة"},{"$f":"IF(ISBLANK(tblEvents[[#This Row],[التاريخ]]),\"\",UPPER(TEXT(tblEvents[[#This Row],[التاريخ]],\"mmm\")))","v":"يوليه"},"اجتماع مجلس البلدية"]
[null,"2016-07-11",{"$f":"IF(ISBLANK(tblEvents[[#This Row],[التاريخ]]),\"\",UPPER(TEXT(tblEvents[[#This Row],[التاريخ]],\"ddd\")))","v":"الإثنين"},{"$f":"IF(ISBLANK(tblEvents[[#This Row],[التاريخ]]),\"\",UPPER(TEXT(tblEvents[[#This Row],[التاريخ]],\"mmm\")))","v":"يوليه"},"غداء مع أعضاء غرفة التجارة"]
[null,"2016-07-12",{"$f":"IF(ISBLANK(tblEvents[[#This Row],[التاريخ]]),\"\",UPPER(TEXT(tblEvents[[#This Row],[التاريخ]],\"ddd\")))","v":"الثلاثاء"},{"$f":"IF(ISBLANK(tblEvents[[#This Row],[التاريخ]]),\"\",UPPER(TEXT(tblEvents[[#This Row],[التاريخ]],\"mmm\")))","v":"يوليه"},"عرض التحف"]
[null,"2016-07-14",{"$f":"IF(ISBLANK(tblEvents[[#This Row],[التاريخ]]),\"\",UPPER(TEXT(tblEvents[[#This Row],[التاريخ]],\"ddd\")))","v":"الخميس"},{"$f":"IF(ISBLANK(tblEvents[[#This Row],[التاريخ]]),\"\",UPPER(TEXT(tblEvents[[#This Row],[التاريخ]],\"mmm\")))","v":"يوليه"},"ورشة عمل المجتمع"]
[null,"2016-07-15",{"$f":"IF(ISBLANK(tblEvents[[#This Row],[التاريخ]]),\"\",UPPER(TEXT(tblEvents[[#This Row],[التاريخ]],\"ddd\")))","v":"الجمعة"},{"$f":"IF(ISBLANK(tblEvents[[#This Row],[التاريخ]]),\"\",UPPER(TEXT(tblEvents[[#This Row],[التاريخ]],\"mmm\")))","v":"يوليه"},"اجتماع مجلس البلدية"]
[null,"2016-07-19",{"$f":"IF(ISBLANK(tblEvents[[#This Row],[التاريخ]]),\"\",UPPER(TEXT(tblEvents[[#This Row],[التاريخ]],\"ddd\")))","v":"الثلاثاء"},{"$f":"IF(ISBLANK(tblEvents[[#This Row],[التاريخ]]),\"\",UPPER(TEXT(tblEvents[[#This Row],[التاريخ]],\"mmm\")))","v":"يوليه"},"ورشة عمل للتخطيط الاستراتيجي"]
[null,"2016-07-20",{"$f":"IF(ISBLANK(tblEvents[[#This Row],[التاريخ]]),\"\",UPPER(TEXT(tblEvents[[#This Row],[التاريخ]],\"ddd\")))","v":"الأربعاء"},{"$f":"IF(ISBLANK(tblEvents[[#This Row],[التاريخ]]),\"\",UPPER(TEXT(tblEvents[[#This Row],[التاريخ]],\"mmm\")))","v":"يوليه"},"تنظيف المنتزه"]
[null,"2016-07-22",{"$f":"IF(ISBLANK(tblEvents[[#This Row],[التاريخ]]),\"\",UPPER(TEXT(tblEvents[[#This Row],[التاريخ]],\"ddd\")))","v":"الجمعة"},{"$f":"IF(ISBLANK(tblEvents[[#This Row],[التاريخ]]),\"\",UPPER(TEXT(tblEvents[[#This Row],[التاريخ]],\"mmm\")))","v":"يوليه"},"اجتماع مجلس البلدية"]
[null,"2016-07-26",{"$f":"IF(ISBLANK(tblEvents[[#This Row],[التاريخ]]),\"\",UPPER(TEXT(tblEvents[[#This Row],[التاريخ]],\"ddd\")))","v":"الثلاثاء"},{"$f":"IF(ISBLANK(tblEvents[[#This Row],[التاريخ]]),\"\",UPPER(TEXT(tblEvents[[#This Row],[التاريخ]],\"mmm\")))","v":"يوليه"},"جولة في وسط المدينة مشياً على الأقدام"]
[null,"2016-07-26",{"$f":"IF(ISBLANK(tblEvents[[#This Row],[التاريخ]]),\"\",UPPER(TEXT(tblEvents[[#This Row],[التاريخ]],\"ddd\")))","v":"الثلاثاء"},{"$f":"IF(ISBLANK(tblEvents[[#This Row],[التاريخ]]),\"\",UPPER(TEXT(tblEvents[[#This Row],[التاريخ]],\"mmm\")))","v":"يوليه"},"التنزه"]
[null,"2016-07-29",{"$f":"IF(ISBLANK(tblEvents[[#This Row],[التاريخ]]),\"\",UPPER(TEXT(tblEvents[[#This Row],[التاريخ]],\"ddd\")))","v":"الجمعة"},{"$f":"IF(ISBLANK(tblEvents[[#This Row],[التاريخ]]),\"\",UPPER(TEXT(tblEvents[[#This Row],[التاريخ]],\"mmm\")))","v":"يوليه"},"اجتماع مجلس البلدية"]
[null,"2016-08-05",{"$f":"IF(ISBLANK(tblEvents[[#This Row],[التاريخ]]),\"\",UPPER(TEXT(tblEvents[[#This Row],[التاريخ]],\"ddd\")))","v":"الجمعة"},{"$f":"IF(ISBLANK(tblEvents[[#This Row],[التاريخ]]),\"\",UPPER(TEXT(tblEvents[[#This Row],[التاريخ]],\"mmm\")))","v":"أغسطس"},"اجتماع مجلس البلدية"]
[null,"2016-08-10",{"$f":"IF(ISBLANK(tblEvents[[#This Row],[التاريخ]]),\"\",UPPER(TEXT(tblEvents[[#This Row],[التاريخ]],\"ddd\")))","v":"الأربعاء"},{"$f":"IF(ISBLANK(tblEvents[[#This Row],[التاريخ]]),\"\",UPPER(TEXT(tblEvents[[#This Row],[التاريخ]],\"mmm\")))","v":"أغسطس"},"تنظيف المنتزه"]
[null,"2016-08-12",{"$f":"IF(ISBLANK(tblEvents[[#This Row],[التاريخ]]),\"\",UPPER(TEXT(tblEvents[[#This Row],[التاريخ]],\"ddd\")))","v":"الجمعة"},{"$f":"IF(ISBLANK(tblEvents[[#This Row],[التاريخ]]),\"\",UPPER(TEXT(tblEvents[[#This Row],[التاريخ]],\"mmm\")))","v":"أغسطس"},"اجتماع مجلس البلدية"]
[null,"2016-08-13",{"$f":"IF(ISBLANK(tblEvents[[#This Row],[التاريخ]]),\"\",UPPER(TEXT(tblEvents[[#This Row],[التاريخ]],\"ddd\")))","v":"السبت"},{"$f":"IF(ISBLANK(tblEvents[[#This Row],[التاريخ]]),\"\",UPPER(TEXT(tblEvents[[#This Row],[التاريخ]],\"mmm\")))","v":"أغسطس"},"حديقة المجتمع"]
[null,"2016-09-01",{"$f":"IF(ISBLANK(tblEvents[[#This Row],[التاريخ]]),\"\",UPPER(TEXT(tblEvents[[#This Row],[التاريخ]],\"ddd\")))","v":"الخميس"},{"$f":"IF(ISBLANK(tblEvents[[#This Row],[التاريخ]]),\"\",UPPER(TEXT(tblEvents[[#This Row],[التاريخ]],\"mmm\")))","v":"سبتمبر"},"اجتماع هيئة الميزانية"]
[null,"2016-10-01",{"$f":"IF(ISBLANK(tblEvents[[#This Row],[التاريخ]]),\"\",UPPER(TEXT(tblEvents[[#This Row],[التاريخ]],\"ddd\")))","v":"السبت"},{"$f":"IF(ISBLANK(tblEvents[[#This Row],[التاريخ]]),\"\",UPPER(TEXT(tblEvents[[#This Row],[التاريخ]],\"mmm\")))","v":"أكتوبر"},"اجتماع هيئة الميزانية"]
[null,"2016-11-03",{"$f":"IF(ISBLANK(tblEvents[[#This Row],[التاريخ]]),\"\",UPPER(TEXT(tblEvents[[#This Row],[التاريخ]],\"ddd\")))","v":"الخميس"},{"$f":"IF(ISBLANK(tblEvents[[#This Row],[التاريخ]]),\"\",UPPER(TEXT(tblEvents[[#This Row],[التاريخ]],\"mmm\")))","v":"نوفمبر"},"اجتماع هيئة الميزانية"]
[null,"2016-12-01",{"$f":"IF(ISBLANK(tblEvents[[#This Row],[التاريخ]]),\"\",UPPER(TEXT(tblEvents[[#This Row],[التاريخ]],\"ddd\")))","v":"الخميس"},{"$f":"IF(ISBLANK(tblEvents[[#This Row],[التاريخ]]),\"\",UPPER(TEXT(tblEvents[[#This Row],[التاريخ]],\"mmm\")))","v":"ديسمبر"},"اجتماع هيئة الميزانية"]
[null,"2017-01-01",{"$f":"IF(ISBLANK(tblEvents[[#This Row],[التاريخ]]),\"\",UPPER(TEXT(tblEvents[[#This Row],[التاريخ]],\"ddd\")))","v":"الأحد"},{"$f":"IF(ISBLANK(tblEvents[[#This Row],[التاريخ]]),\"\",UPPER(TEXT(tblEvents[[#This Row],[التاريخ]],\"mmm\")))","v":"يناير"},"اجتماع هيئة الميزانية"]
[null,"2017-02-02",{"$f":"IF(ISBLANK(tblEvents[[#This Row],[التاريخ]]),\"\",UPPER(TEXT(tblEvents[[#This Row],[التاريخ]],\"ddd\")))","v":"الخميس"},{"$f":"IF(ISBLANK(tblEvents[[#This Row],[التاريخ]]),\"\",UPPER(TEXT(tblEvents[[#This Row],[التاريخ]],\"mmm\")))","v":"فبراير"},"اجتماع هيئة الميزانية"]
[null,"2017-03-02",{"$f":"IF(ISBLANK(tblEvents[[#This Row],[التاريخ]]),\"\",UPPER(TEXT(tblEvents[[#This Row],[التاريخ]],\"ddd\")))","v":"الخميس"},{"$f":"IF(ISBLANK(tblEvents[[#This Row],[التاريخ]]),\"\",UPPER(TEXT(tblEvents[[#This Row],[التاريخ]],\"mmm\")))","v":"مارس"},"اجتماع هيئة الميزانية"]
[null,"2017-04-01",{"$f":"IF(ISBLANK(tblEvents[[#This Row],[التاريخ]]),\"\",UPPER(TEXT(tblEvents[[#This Row],[التاريخ]],\"ddd\")))","v":"السبت"},{"$f":"IF(ISBLANK(tblEvents[[#This Row],[التاريخ]]),\"\",UPPER(TEXT(tblEvents[[#This Row],[التاريخ]],\"mmm\")))","v":"أبريل"},"اجتماع هيئة الميزانية"]
[null,"2017-05-01",{"$f":"IF(ISBLANK(tblEvents[[#This Row],[التاريخ]]),\"\",UPPER(TEXT(tblEvents[[#This Row],[التاريخ]],\"ddd\")))","v":"الإثنين"},{"$f":"IF(ISBLANK(tblEvents[[#This Row],[التاريخ]]),\"\",UPPER(TEXT(tblEvents[[#This Row],[التاريخ]],\"mmm\")))","v":"مايو"},"اجتماع هيئة الميزانية"]
[null,"2017-06-01",{"$f":"IF(ISBLANK(tblEvents[[#This Row],[التاريخ]]),\"\",UPPER(TEXT(tblEvents[[#This Row],[التاريخ]],\"ddd\")))","v":"الخميس"},{"$f":"IF(ISBLANK(tblEvents[[#This Row],[التاريخ]]),\"\",UPPER(TEXT(tblEvents[[#This Row],[التاريخ]],\"mmm\")))","v":"يونيو"},"اجتماع هيئة الميزانية"]
[null,"2017-06-02",{"$f":"IF(ISBLANK(tblEvents[[#This Row],[التاريخ]]),\"\",UPPER(TEXT(tblEvents[[#This Row],[التاريخ]],\"ddd\")))","v":"الجمعة"},{"$f":"IF(ISBLANK(tblEvents[[#This Row],[التاريخ]]),\"\",UPPER(TEXT(tblEvents[[#This Row],[التاريخ]],\"mmm\")))","v":"يونيو"},"اجتماع مجلس البلدية"]

{"sheet":"التقويم","index":1,"n_rows":35,"n_cols":21,"rows_kept":35,"merged":[[1,5,1,11],[30,8,34,20]]}
[]
[null,null,2016,null,null,{"$f":"LOOKUP(MonthNum,tblMonths[الرقم],tblMonths[الشهر])","v":"يوليو"}]
[null,null,7,null,null,{"$f":"DATE(ViewYear,MonthNum,1)","v":"2016-07-01"},null,null,{"$f":"WEEKDAY(StartDate)","v":6}]
[null,null,"الأحد",null,null,"الاثنين",null,null,"الثلاثاء",null,null,"الأربعاء",null,null,"الخميس",null,null,"الجمعة",null,null,"السبت"]
[]
[null,null,{"$f":"StartDate-(WEEKDAY(StartDate)-1)+{0;1;2;3;4;5}*7 +{1,2,3,4,5,6,7}-3+COLUMN(B1)","v":"2016-06-26"},null,null,{"$f":"StartDate-(WEEKDAY(StartDate)-1)+{0;1;2;3;4;5}*7 +{1,2,3,4,5,6,7}-3+COLUMN(C1)","v":"2016-06-27"},null,null,{"$f":"StartDate-(WEEKDAY(StartDate)-1)+{0;1;2;3;4;5}*7 +{1,2,3,4,5,6,7}-3+COLUMN(D1)","v":"2016-06-28"},null,null,{"$f":"StartDate-(WEEKDAY(StartDate)-1)+{0;1;2;3;4;5}*7 +{1,2,3,4,5,6,7}-3+COLUMN(E1)","v":"2016-06-29"},null,null,{"$f":"StartDate-(WEEKDAY(StartDate)-1)+{0;1;2;3;4;5}*7 +{1,2,3,4,5,6,7}-3+COLUMN(F1)","v":"2016-06-30"},null,null,{"$f":"StartDate-(WEEKDAY(StartDate)-1)+{0;1;2;3;4;5}*7 +{1,2,3,4,5,6,7}-3+COLUMN(G1)","v":"2016-07-01"},null,null,{"$f":"StartDate-(WEEKDAY(StartDate)-1)+{0;1;2;3;4;5}*7 +{1,2,3,4,5,6,7}-3+COLUMN(H1)","v":"2016-07-02"}]
[null,null,{"$f":"IFERROR(INDEX(tblEvents[],SMALL(IF(Dates=C$6,ROW(Dates)),ROW(1:1))-TableRowStart,4),\"\")","v":""},null,null,{"$f":"IFERROR(INDEX(tblEvents[],SMALL(IF(Dates=F$6,ROW(Dates)),ROW(1:1))-TableRowStart,4),\"\")","v":""},null,null,{"$f":"IFERROR(INDEX(tblEvents[],SMALL(IF(Dates=I$6,ROW(Dates)),ROW(1:1))-TableRowStart,4),\"\")","v":""},null,null,{"$f":"IFERROR(INDEX(tblEvents[],SMALL(IF(Dates=L$6,ROW(Dates)),ROW(1:1))-TableRowStart,4),\"\")","v":""},null,null,{"$f":"IFERROR(INDEX(tblEvents[],SMALL(IF(Dates=O$6,ROW(Dates)),ROW(1:1))-TableRowStart,4),\"\")","v":""},null,null,{"$f":"IFERROR(INDEX(tblEvents[],SMALL(IF(Dates=R$6,ROW(Dates)),ROW(1:1))-TableRowStart,4),\"\")","v":"حديقة المجتمع"},null,null,{"$f":"IFERROR(INDEX(tblEvents[],SMALL(IF(Dates=U$6,ROW(Dates)),ROW(1:1))-TableRowStart,4),\"\")","v":"حديقة المجتمع"}]
[null,null,{"$f":"IFERROR(INDEX(tblEvents[],SMALL(IF(Dates=C$6,ROW(Dates)),ROW(2:2))-TableRowStart,4),\"\")","v":""},null,null,{"$f":"IFERROR(INDEX(tblEvents[],SMALL(IF(Dates=F$6,ROW(Dates)),ROW(2:2))-TableRowStart,4),\"\")","v":""},null,null,{"$f":"IFERROR(INDEX(tblEvents[],SMALL(IF(Dates=I$6,ROW(Dates)),ROW(2:2))-TableRowStart,4),\"\")","v":""},null,null,{"$f":"IFERROR(INDEX(tblEvents[],SMALL(IF(Dates=L$6,ROW(Dates)),ROW(2:2))-TableRowStart,4),\"\")","v":""},null,null,{"$f":"IFERROR(INDEX(tblEvents[],SMALL(IF(Dates=O$6,ROW(Dates)),ROW(2:2))-TableRowStart,4),\"\")","v":""},null,null,{"$f":"IFERROR(INDEX(tblEvents[],SMALL(IF(Dates=R$6,ROW(Dates)),ROW(2:2))-TableRowStart,4),\"\")","v":"اجتماع مجلس البلدية"},null,null,{"$f":"IFERROR(INDEX(tblEvents[],SMALL(IF(Dates=U$6,ROW(Dates)),ROW(2:2))-TableRowStart,4),\"\")","v":""}]
[null,null,{"$f":"IFERROR(INDEX(tblEvents[],SMALL(IF(Dates=C$6,ROW(Dates)),ROW(3:3))-TableRowStart,4),\"\")","v":""},null,null,{"$f":"IFERROR(INDEX(tblEvents[],SMALL(IF(Dates=F$6,ROW(Dates)),ROW(3:3))-TableRowStart,4),\"\")","v":""},null,null,{"$f":"IFERROR(INDEX(tblEvents[],SMALL(IF(Dates=I$6,ROW(Dates)),ROW(3:3))-TableRowStart,4),\"\")","v":""},null,null,{"$f":"IFERROR(INDEX(tblEvents[],SMALL(IF(Dates=L$6,ROW(Dates)),ROW(3:3))-TableRowStart,4),\"\")","v":""},null,null,{"$f":"IFERROR(INDEX(tblEvents[],SMALL(IF(Dates=O$6,ROW(Dates)),ROW(3:3))-TableRowStart,4),\"\")","v":""},null,null,{"$f":"IFERROR(INDEX(tblEvents[],SMALL(IF(Dates=R$6,ROW(Dates)),ROW(3:3))-TableRowStart,4),\"\")","v":""},null,null,{"$f":"IFERROR(INDEX(tblEvents[],SMALL(IF(Dates=U$6,ROW(Dates)),ROW(3:3))-TableRowStart,4),\"\")","v":""}]
[null,null,{"$f":"IFERROR(INDEX(tblEvents[],SMALL(IF(Dates=C$6,ROW(Dates)),ROW(#REF!))-TableRowStart,4),\"\")","v":""},null,null,{"$f":"IFERROR(INDEX(tblEvents[],SMALL(IF(Dates=F$6,ROW(Dates)),ROW(#REF!))-TableRowStart,4),\"\")","v":""},null,null,{"$f":"IFERROR(INDEX(tblEvents[],SMALL(IF(Dates=I$6,ROW(Dates)),ROW(#REF!))-TableRowStart,4),\"\")","v":""},null,null,{"$f":"IFERROR(INDEX(tblEvents[],SMALL(IF(Dates=L$6,ROW(Dates)),ROW(#REF!))-TableRowStart,4),\"\")","v":""},null,null,{"$f":"IFERROR(INDEX(tblEvents[],SMALL(IF(Dates=O$6,ROW(Dates)),ROW(#REF!))-TableRowStart,4),\"\")","v":""},null,null,{"$f":"IFERROR(INDEX(tblEvents[],SMALL(IF(Dates=R$6,ROW(Dates)),ROW(#REF!))-TableRowStart,4),\"\")","v":""},null,null,{"$f":"IFERROR(INDEX(tblEvents[],SMALL(IF(Dates=U$6,ROW(Dates)),ROW(#REF!))-TableRowStart,4),\"\")","v":""}]
[null,null,{"$f":"U6+1","v":"2016-07-03"},null,null,{"$f":"C11+1","v":"2016-07-04"},null,null,{"$f":"F11+1","v":"2016-07-05"},null,null,{"$f":"I11+1","v":"2016-07-06"},null,null,{"$f":"L11+1","v":"2016-07-07"},null,null,{"$f":"O11+1","v":"2016-07-08"},null,null,{"$f":"R11+1","v":"2016-07-09"}]
[null,null,{"$f":"IFERROR(INDEX(tblEvents[],SMALL(IF(Dates=C$11,ROW(Dates)),ROW(1:1))-TableRowStart,4),\"\")","v":"ليلة لمشاهدة الأفلام في المنتزه"},null,null,{"$f":"IFERROR(INDEX(tblEvents[],SMALL(IF(Dates=F$11,ROW(Dates)),ROW(1:1))-TableRowStart,4),\"\")","v":""},null,null,{"$f":"IFERROR(INDEX(tblEvents[],SMALL(IF(Dates=I$11,ROW(Dates)),ROW(1:1))-TableRowStart,4),\"\")","v":""},null,null,{"$f":"IFERROR(INDEX(tblEvents[],SMALL(IF(Dates=L$11,ROW(Dates)),ROW(1:1))-TableRowStart,4),\"\")","v":""},null,null,{"$f":"IFERROR(INDEX(tblEvents[],SMALL(IF(Dates=O$11,ROW(Dates)),ROW(1:1))-TableRowStart,4),\"\")","v":""},null,null,{"$f":"IFERROR(INDEX(tblEvents[],SMALL(IF(Dates=R$11,ROW(Dates)),ROW(1:1))-TableRowStart,4),\"\")","v":"اجتماع مجلس البلدية"},null,null,{"$f":"IFERROR(INDEX(tblEvents[],SMALL(IF(Dates=U$11,ROW(Dates)),ROW(1:1))-TableRowStart,4),\"\")","v":""}]
[null,null,{"$f":"IFERROR(INDEX(tblEvents[],SMALL(IF(Dates=C$11,ROW(Dates)),ROW(2:2))-TableRowStart,4),\"\")","v":""},null,null,{"$f":"IFERROR(INDEX(tblEvents[],SMALL(IF(Dates=F$11,ROW(Dates)),ROW(2:2))-TableRowStart,4),\"\")","v":""},null,null,{"$f":"IFERROR(INDEX(tblEvents[],SMALL(IF(Dates=I$11,ROW(Dates)),ROW(2:2))-TableRowStart,4),\"\")","v":""},null,null,{"$f":"IFERROR(INDEX(tblEvents[],SMALL(IF(Dates=L$11,ROW(Dates)),ROW(2:2))-TableRowStart,4),\"\")","v":""},null,null,{"$f":"IFERROR(INDEX(tblEvents[],SMALL(IF(Dates=O$11,ROW(Dates)),ROW(2:2))-TableRowStart,4),\"\")","v":""},null,null,{"$f":"IFERROR(INDEX(tblEvents[],SMALL(IF(Dates=R$11,ROW(Dates)),ROW(2:2))-TableRowStart,4),\"\")","v":""},null,null,{"$f":"IFERROR(INDEX(tblEvents[],SMALL(IF(Dates=U$11,ROW(Dates)),ROW(2:2))-TableRowStart,4),\"\")","v":""}]
[null,null,{"$f":"IFERROR(INDEX(tblEvents[],SMALL(IF(Dates=C$11,ROW(Dates)),ROW(3:3))-TableRowStart,4),\"\")","v":""},null,null,{"$f":"IFERROR(INDEX(tblEvents[],SMALL(IF(Dates=F$11,ROW(Dates)),ROW(3:3))-TableRowStart,4),\"\")","v":""},null,null,{"$f":"IFERROR(INDEX(tblEvents[],SMALL(IF(Dates=I$11,ROW(Dates)),ROW(3:3))-TableRowStart,4),\"\")","v":""},null,null,{"$f":"IFERROR(INDEX(tblEvents[],SMALL(IF(Dates=L$11,ROW(Dates)),ROW(3:3))-TableRowStart,4),\"\")","v":""},null,null,{"$f":"IFERROR(INDEX(tblEvents[],SMALL(IF(Dates=O$11,ROW(Dates)),ROW(3:3))-TableRowStart,4),\"\")","v":""},null,null,{"$f":"IFERROR(INDEX(tblEvents[],SMALL(IF(Dates=R$11,ROW(Dates)),ROW(3:3))-TableRowStart,4),\"\")","v":""},null,null,{"$f":"IFERROR(INDEX(tblEvents[],SMALL(IF(Dates=U$11,ROW(Dates)),ROW(3:3))-TableRowStart,4),\"\")","v":""}]
[null,null,{"$f":"IFERROR(INDEX(tblEvents[],SMALL(IF(Dates=C$11,ROW(Dates)),ROW(#REF!))-TableRowStart,4),\"\")","v":""},null,null,{"$f":"IFERROR(INDEX(tblEvents[],SMALL(IF(Dates=F$11,ROW(Dates)),ROW(#REF!))-TableRowStart,4),\"\")","v":""},null,null,{"$f":"IFERROR(INDEX(tblEvents[],SMALL(IF(Dates=I$11,ROW(Dates)),ROW(#REF!))-TableRowStart,4),\"\")","v":""},null,null,{"$f":"IFERROR(INDEX(tblEvents[],SMALL(IF(Dates=L$11,ROW(Dates)),ROW(#REF!))-TableRowStart,4),\"\")","v":""},null,null,{"$f":"IFERROR(INDEX(tblEvents[],SMALL(IF(Dates=O$11,ROW(Dates)),ROW(#REF!))-TableRowStart,4),\"\")","v":""},null,null,{"$f":"IFERROR(INDEX(tblEvents[],SMALL(IF(Dates=R$11,ROW(Dates)),ROW(#REF!))-TableRowStart,4),\"\")","v":""},null,null,{"$f":"IFERROR(INDEX(tblEvents[],SMALL(IF(Dates=U$11,ROW(Dates)),ROW(#REF!))-TableRowStart,4),\"\")","v":""}]
[null,null,{"$f":"U11+1","v":"2016-07-10"},null,null,{"$f":"C16+1","v":"2016-07-11"},null,null,{"$f":"F16+1","v":"2016-07-12"},null,null,{"$f":"I16+1","v":"2016-07-13"},null,null,{"$f":"L16+1","v":"2016-07-14"},null,null,{"$f":"O16+1","v":"2016-07-15"},null,null,{"$f":"R16+1","v":"2016-07-16"}]
[null,null,{"$f":"IFERROR(INDEX(tblEvents[],SMALL(IF(Dates=C$16,ROW(Dates)),ROW(1:1))-TableRowStart,4),\"\")","v":""},null,null,{"$f":"IFERROR(INDEX(tblEvents[],SMALL(IF(Dates=F$16,ROW(Dates)),ROW(1:1))-TableRowStart,4),\"\")","v":"غداء مع أعضاء غرفة التجارة"},null,null,{"$f":"IFERROR(INDEX(tblEvents[],SMALL(IF(Dates=I$16,ROW(Dates)),ROW(1:1))-TableRowStart,4),\"\")","v":"عرض التحف"},null,null,{"$f":"IFERROR(INDEX(tblEvents[],SMALL(IF(Dates=L$16,ROW(Dates)),ROW(1:1))-TableRowStart,4),\"\")","v":""},null,null,{"$f":"IFERROR(INDEX(tblEvents[],SMALL(IF(Dates=O$16,ROW(Dates)),ROW(1:1))-TableRowStart,4),\"\")","v":"ورشة عمل المجتمع"},null,null,{"$f":"IFERROR(INDEX(tblEvents[],SMALL(IF(Dates=R$16,ROW(Dates)),ROW(1:1))-TableRowStart,4),\"\")","v":"اجتماع مجلس البلدية"},null,null,{"$f":"IFERROR(INDEX(tblEvents[],SMALL(IF(Dates=U$16,ROW(Dates)),ROW(1:1))-TableRowStart,4),\"\")","v":""}]
[null,null,{"$f":"IFERROR(INDEX(tblEvents[],SMALL(IF(Dates=C$16,ROW(Dates)),ROW(2:2))-TableRowStart,4),\"\")","v":""},null,null,{"$f":"IFERROR(INDEX(tblEvents[],SMALL(IF(Dates=F$16,ROW(Dates)),ROW(2:2))-TableRowStart,4),\"\")","v":""},null,null,{"$f":"IFERROR(INDEX(tblEvents[],SMALL(IF(Dates=I$16,ROW(Dates)),ROW(2:2))-TableRowStart,4),\"\")","v":""},null,null,{"$f":"IFERROR(INDEX(tblEvents[],SMALL(IF(Dates=L$16,ROW(Dates)),ROW(2:2))-TableRowStart,4),\"\")","v":""},null,null,{"$f":"IFERROR(INDEX(tblEvents[],SMALL(IF(Dates=O$16,ROW(Dates)),ROW(2:2))-TableRowStart,4),\"\")","v":""},null,null,{"$f":"IFERROR(INDEX(tblEvents[],SMALL(IF(Dates=R$16,ROW(Dates)),ROW(2:2))-TableRowStart,4),\"\")","v":""},null,null,{"$f":"IFERROR(INDEX(tblEvents[],SMALL(IF(Dates=U$16,ROW(Dates)),ROW(2:2))-TableRowStart,4),\"\")","v":""}]
[null,null,{"$f":"IFERROR(INDEX(tblEvents[],SMALL(IF(Dates=C$16,ROW(Dates)),ROW(3:3))-TableRowStart,4),\"\")","v":""},null,null,{"$f":"IFERROR(INDEX(tblEvents[],SMALL(IF(Dates=F$16,ROW(Dates)),ROW(3:3))-TableRowStart,4),\"\")","v":""},null,null,{"$f":"IFERROR(INDEX(tblEvents[],SMALL(IF(Dates=I$16,ROW(Dates)),ROW(3:3))-TableRowStart,4),\"\")","v":""},null,null,{"$f":"IFERROR(INDEX(tblEvents[],SMALL(IF(Dates=L$16,ROW(Dates)),ROW(3:3))-TableRowStart,4),\"\")","v":""},null,null,{"$f":"IFERROR(INDEX(tblEvents[],SMALL(IF(Dates=O$16,ROW(Dates)),ROW(3:3))-TableRowStart,4),\"\")","v":""},null,null,{"$f":"IFERROR(INDEX(tblEvents[],SMALL(IF(Dates=R$16,ROW(Dates)),ROW(3:3))-TableRowStart,4),\"\")","v":""},null,null,{"$f":"IFERROR(INDEX(tblEvents[],SMALL(IF(Dates=U$16,ROW(Dates)),ROW(3:3))-TableRowStart,4),\"\")","v":""}]
[null,null,{"$f":"IFERROR(INDEX(tblEvents[],SMALL(IF(Dates=C$16,ROW(Dates)),ROW(#REF!))-TableRowStart,4),\"\")","v":""},null,null,{"$f":"IFERROR(INDEX(tblEvents[],SMALL(IF(Dates=F$16,ROW(Dates)),ROW(#REF!))-TableRowStart,4),\"\")","v":""},null,null,{"$f":"IFERROR(INDEX(tblEvents[],SMALL(IF(Dates=I$16,ROW(Dates)),ROW(#REF!))-TableRowStart,4),\"\")","v":""},null,null,{"$f":"IFERROR(INDEX(tblEvents[],SMALL(IF(Dates=L$16,ROW(Dates)),ROW(#REF!))-TableRowStart,4),\"\")","v":""},null,null,{"$f":"IFERROR(INDEX(tblEvents[],SMALL(IF(Dates=O$16,ROW(Dates)),ROW(#REF!))-TableRowStart,4),\"\")","v":""},null,null,{"$f":"IFERROR(INDEX(tblEvents[],SMALL(IF(Dates=R$16,ROW(Dates)),ROW(#REF!))-TableRowStart,4),\"\")","v":""},null,null,{"$f":"IFERROR(INDEX(tblEvents[],SMALL(IF(Dates=U$16,ROW(Dates)),ROW(#REF!))-TableRowStart,4),\"\")","v":""}]
[null,null,{"$f":"U16+1","v":"2016-07-17"},null,null,{"$f":"C21+1","v":"2016-07-18"},null,null,{"$f":"F21+1","v":"2016-07-19"},null,null,{"$f":"I21+1","v":"2016-07-20"},null,null,{"$f":"L21+1","v":"2016-07-21"},null,null,{"$f":"O21+1","v":"2016-07-22"},null,null,{"$f":"R21+1","v":"2016-07-23"}]
[null,null,{"$f":"IFERROR(INDEX(tblEvents[],SMALL(IF(Dates=C$21,ROW(Dates)),ROW(1:1))-TableRowStart,4),\"\")","v":""},null,null,{"$f":"IFERROR(INDEX(tblEvents[],SMALL(IF(Dates=F$21,ROW(Dates)),ROW(1:1))-TableRowStart,4),\"\")","v":""},null,null,{"$f":"IFERROR(INDEX(tblEvents[],SMALL(IF(Dates=I$21,ROW(Dates)),ROW(1:1))-TableRowStart,4),\"\")","v":"ورشة عمل للتخطيط الاستراتيجي"},null,null,{"$f":"IFERROR(INDEX(tblEvents[],SMALL(IF(Dates=L$21,ROW(Dates)),ROW(1:1))-TableRowStart,4),\"\")","v":"تنظيف المنتزه"},null,null,{"$f":"IFERROR(INDEX(tblEvents[],SMALL(IF(Dates=O$21,ROW(Dates)),ROW(1:1))-TableRowStart,4),\"\")","v":""},null,null,{"$f":"IFERROR(INDEX(tblEvents[],SMALL(IF(Dates=R$21,ROW(Dates)),ROW(1:1))-TableRowStart,4),\"\")","v":"اجتماع مجلس البلدية"},null,null,{"$f":"IFERROR(INDEX(tblEvents[],SMALL(IF(Dates=U$21,ROW(Dates)),ROW(1:1))-TableRowStart,4),\"\")","v":""}]
[null,null,{"$f":"IFERROR(INDEX(tblEvents[],SMALL(IF(Dates=C$21,ROW(Dates)),ROW(2:2))-TableRowStart,4),\"\")","v":""},null,null,{"$f":"IFERROR(INDEX(tblEvents[],SMALL(IF(Dates=F$21,ROW(Dates)),ROW(2:2))-TableRowStart,4),\"\")","v":""},null,null,{"$f":"IFERROR(INDEX(tblEvents[],SMALL(IF(Dates=I$21,ROW(Dates)),ROW(2:2))-TableRowStart,4),\"\")","v":""},null,null,{"$f":"IFERROR(INDEX(tblEvents[],SMALL(IF(Dates=L$21,ROW(Dates)),ROW(2:2))-TableRowStart,4),\"\")","v":""},null,null,{"$f":"IFERROR(INDEX(tblEvents[],SMALL(IF(Dates=O$21,ROW(Dates)),ROW(2:2))-TableRowStart,4),\"\")","v":""},null,null,{"$f":"IFERROR(INDEX(tblEvents[],SMALL(IF(Dates=R$21,ROW(Dates)),ROW(2:2))-TableRowStart,4),\"\")","v":""},null,null,{"$f":"IFERROR(INDEX(tblEvents[],SMALL(IF(Dates=U$21,ROW(Dates)),ROW(2:2))-TableRowStart,4),\"\")","v":""}]
[null,null,{"$f":"IFERROR(INDEX(tblEvents[],SMALL(IF(Dates=C$21,ROW(Dates)),ROW(3:3))-TableRowStart,4),\"\")","v":""},null,null,{"$f":"IFERROR(INDEX(tblEvents[],SMALL(IF(Dates=F$21,ROW(Dates)),ROW(3:3))-TableRowStart,4),\"\")","v":""},null,null,{"$f":"IFERROR(INDEX(tblEvents[],SMALL(IF(Dates=I$21,ROW(Dates)),ROW(3:3))-TableRowStart,4),\"\")","v":""},null,null,{"$f":"IFERROR(INDEX(tblEvents[],SMALL(IF(Dates=L$21,ROW(Dates)),ROW(3:3))-TableRowStart,4),\"\")","v":""},null,null,{"$f":"IFERROR(INDEX(tblEvents[],SMALL(IF(Dates=O$21,ROW(Dates)),ROW(3:3))-TableRowStart,4),\"\")","v":""},null,null,{"$f":"IFERROR(INDEX(tblEvents[],SMALL(IF(Dates=R$21,ROW(Dates)),ROW(3:3))-TableRowStart,4),\"\")","v":""},null,null,{"$f":"IFERROR(INDEX(tblEvents[],SMALL(IF(Dates=U$21,ROW(Dates)),ROW(3:3))-TableRowStart,4),\"\")","v":""}]
[null,null,{"$f":"IFERROR(INDEX(tblEvents[],SMALL(IF(Dates=C$21,ROW(Dates)),ROW(#REF!))-TableRowStart,4),\"\")","v":""},null,null,{"$f":"IFERROR(INDEX(tblEvents[],SMALL(IF(Dates=F$21,ROW(Dates)),ROW(#REF!))-TableRowStart,4),\"\")","v":""},null,null,{"$f":"IFERROR(INDEX(tblEvents[],SMALL(IF(Dates=I$21,ROW(Dates)),ROW(#REF!))-TableRowStart,4),\"\")","v":""},null,null,{"$f":"IFERROR(INDEX(tblEvents[],SMALL(IF(Dates=L$21,ROW(Dates)),ROW(#REF!))-TableRowStart,4),\"\")","v":""},null,null,{"$f":"IFERROR(INDEX(tblEvents[],SMALL(IF(Dates=O$21,ROW(Dates)),ROW(#REF!))-TableRowStart,4),\"\")","v":""},null,null,{"$f":"IFERROR(INDEX(tblEvents[],SMALL(IF(Dates=R$21,ROW(Dates)),ROW(#REF!))-TableRowStart,4),\"\")","v":""},null,null,{"$f":"IFERROR(INDEX(tblEvents[],SMALL(IF(Dates=U$21,ROW(Dates)),ROW(#REF!))-TableRowStart,4),\"\")","v":""}]
[null,null,{"$f":"U21+1","v":"2016-07-24"},null,null,{"$f":"C26+1","v":"2016-07-25"},null,null,{"$f":"F26+1","v":"2016-07-26"},null,null,{"$f":"I26+1","v":"2016-07-27"},null,null,{"$f":"L26+1","v":"2016-07-28"},null,null,{"$f":"O26+1","v":"2016-07-29"},null,null,{"$f":"R26+1","v":"2016-07-30"}]
[null,null,{"$f":"IFERROR(INDEX(tblEvents[],SMALL(IF(Dates=C$26,ROW(Dates)),ROW(1:1))-TableRowStart,4),\"\")","v":""},null,null,{"$f":"IFERROR(INDEX(tblEvents[],SMALL(IF(Dates=F$26,ROW(Dates)),ROW(1:1))-TableRowStart,4),\"\")","v":""},null,null,{"$f":"IFERROR(INDEX(tblEvents[],SMALL(IF(Dates=I$26,ROW(Dates)),ROW(1:1))-TableRowStart,4),\"\")","v":"جولة في وسط المدينة مشياً على الأقدام"},null,null,{"$f":"IFERROR(INDEX(tblEvents[],SMALL(IF(Dates=L$26,ROW(Dates)),ROW(1:1))-TableRowStart,4),\"\")","v":""},null,null,{"$f":"IFERROR(INDEX(tblEvents[],SMALL(IF(Dates=O$26,ROW(Dates)),ROW(1:1))-TableRowStart,4),\"\")","v":""},null,null,{"$f":"IFERROR(INDEX(tblEvents[],SMALL(IF(Dates=R$26,ROW(Dates)),ROW(1:1))-TableRowStart,4),\"\")","v":"اجتماع مجلس البلدية"},null,null,{"$f":"IFERROR(INDEX(tblEvents[],SMALL(IF(Dates=U$26,ROW(Dates)),ROW(1:1))-TableRowStart,4),\"\")","v":""}]
[null,null,{"$f":"IFERROR(INDEX(tblEvents[],SMALL(IF(Dates=C$26,ROW(Dates)),ROW(2:2))-TableRowStart,4),\"\")","v":""},null,null,{"$f":"IFERROR(INDEX(tblEvents[],SMALL(IF(Dates=F$26,ROW(Dates)),ROW(2:2))-TableRowStart,4),\"\")","v":""},null,null,{"$f":"IFERROR(INDEX(tblEvents[],SMALL(IF(Dates=I$26,ROW(Dates)),ROW(2:2))-TableRowStart,4),\"\")","v":"التنزه"},null,null,{"$f":"IFERROR(INDEX(tblEvents[],SMALL(IF(Dates=L$26,ROW(Dates)),ROW(2:2))-TableRowStart,4),\"\")","v":""},null,null,{"$f":"IFERROR(INDEX(tblEvents[],SMALL(IF(Dates=O$26,ROW(Dates)),ROW(2:2))-TableRowStart,4),\"\")","v":""},null,null,{"$f":"IFERROR(INDEX(tblEvents[],SMALL(IF(Dates=R$26,ROW(Dates)),ROW(2:2))-TableRowStart,4),\"\")","v":""},null,null,{"$f":"IFERROR(INDEX(tblEvents[],SMALL(IF(Dates=U$26,ROW(Dates)),ROW(2:2))-TableRowStart,4),\"\")","v":""}]
[null,null,{"$f":"IFERROR(INDEX(tblEvents[],SMALL(IF(Dates=C$26,ROW(Dates)),ROW(3:3))-TableRowStart,4),\"\")","v":""},null,null,{"$f":"IFERROR(INDEX(tblEvents[],SMALL(IF(Dates=F$26,ROW(Dates)),ROW(3:3))-TableRowStart,4),\"\")","v":""},null,null,{"$f":"IFERROR(INDEX(tblEvents[],SMALL(IF(Dates=I$26,ROW(Dates)),ROW(3:3))-TableRowStart,4),\"\")","v":""},null,null,{"$f":"IFERROR(INDEX(tblEvents[],SMALL(IF(Dates=L$26,ROW(Dates)),ROW(3:3))-TableRowStart,4),\"\")","v":""},null,null,{"$f":"IFERROR(INDEX(tblEvents[],SMALL(IF(Dates=O$26,ROW(Dates)),ROW(3:3))-TableRowStart,4),\"\")","v":""},null,null,{"$f":"IFERROR(INDEX(tblEvents[],SMALL(IF(Dates=R$26,ROW(Dates)),ROW(3:3))-TableRowStart,4),\"\")","v":""},null,null,{"$f":"IFERROR(INDEX(tblEvents[],SMALL(IF(Dates=U$26,ROW(Dates)),ROW(3:3))-TableRowStart,4),\"\")","v":""}]
[null,null,{"$f":"IFERROR(INDEX(tblEvents[],SMALL(IF(Dates=C$26,ROW(Dates)),ROW(#REF!))-TableRowStart,4),\"\")","v":""},null,null,{"$f":"IFERROR(INDEX(tblEvents[],SMALL(IF(Dates=F$26,ROW(Dates)),ROW(#REF!))-TableRowStart,4),\"\")","v":""},null,null,{"$f":"IFERROR(INDEX(tblEvents[],SMALL(IF(Dates=I$26,ROW(Dates)),ROW(#REF!))-TableRowStart,4),\"\")","v":""},null,null,{"$f":"IFERROR(INDEX(tblEvents[],SMALL(IF(Dates=L$26,ROW(Dates)),ROW(#REF!))-TableRowStart,4),\"\")","v":""},null,null,{"$f":"IFERROR(INDEX(tblEvents[],SMALL(IF(Dates=O$26,ROW(Dates)),ROW(#REF!))-TableRowStart,4),\"\")","v":""},null,null,{"$f":"IFERROR(INDEX(tblEvents[],SMALL(IF(Dates=R$26,ROW(Dates)),ROW(#REF!))-TableRowStart,4),\"\")","v":""},null,null,{"$f":"IFERROR(INDEX(tblEvents[],SMALL(IF(Dates=U$26,ROW(Dates)),ROW(#REF!))-TableRowStart,4),\"\")","v":""}]
[null,null,{"$f":"U26+1","v":"2016-07-31"},null,null,{"$f":"C31+1","v":"2016-08-01"},null,null,"ملاحظات:"]
[null,null,{"$f":"IFERROR(INDEX(tblEvents[],SMALL(IF(Dates=C$31,ROW(Dates)),ROW(1:1))-TableRowStart,4),\"\")","v":""},null,null,{"$f":"IFERROR(INDEX(tblEvents[],SMALL(IF(Dates=F$31,ROW(Dates)),ROW(1:1))-TableRowStart,4),\"\")","v":""}]
[null,null,{"$f":"IFERROR(INDEX(tblEvents[],SMALL(IF(Dates=C$31,ROW(Dates)),ROW(2:2))-TableRowStart,4),\"\")","v":""},null,null,{"$f":"IFERROR(INDEX(tblEvents[],SMALL(IF(Dates=F$31,ROW(Dates)),ROW(2:2))-TableRowStart,4),\"\")","v":""}]
[null,null,{"$f":"IFERROR(INDEX(tblEvents[],SMALL(IF(Dates=C$31,ROW(Dates)),ROW(3:3))-TableRowStart,4),\"\")","v":""},null,null,{"$f":"IFERROR(INDEX(tblEvents[],SMALL(IF(Dates=F$31,ROW(Dates)),ROW(3:3))-TableRowStart,4),\"\")","v":""}]
[null,null,{"$f":"IFERROR(INDEX(tblEvents[],SMALL(IF(Dates=C$31,ROW(Dates)),ROW(#REF!))-TableRowStart,4),\"\")","v":""},null,null,{"$f":"IFERROR(INDEX(tblEvents[],SMALL(IF(Dates=F$31,ROW(Dates)),ROW(#REF!))-TableRowStart,4),\"\")","v":""}]

{"sheet":"إصدار الطباعة","index":2,"n_rows":35,"n_cols":21,"rows_kept":35,"merged":[[1,5,1,11],[30,8,34,20]]}
[]
[null,null,{"$f":"ViewYear","v":2016},null,null,{"$f":"ViewMonth","v":"يوليو"},{"$f":"التقويم!G2","v":0},{"$f":"التقويم!H2","v":0},{"$f":"التقويم!I2","v":0},{"$f":"التقويم!J2","v":0},{"$f":"التقويم!K2","v":0},{"$f":"التقويم!L2","v":0}]
[]
[null,null,"الأحد",null,null,"الاثنين",null,null,"الثلاثاء",null,null,"الأربعاء",null,null,"الخميس",null,null,"الجمعة",null,null,"السبت"]
[]
[null,null,{"$f":"التقويم!C6","v":"2016-06-26"},{"$f":"التقويم!D6","v":0},{"$f":"التقويم!E6","v":0},{"$f":"التقويم!F6","v":"2016-06-27"},{"$f":"التقويم!G6","v":0},{"$f":"التقويم!H6","v":0},{"$f":"التقويم!I6","v":"2016-06-28"},{"$f":"التقويم!J6","v":0},{"$f":"التقويم!K6","v":0},{"$f":"التقويم!L6","v":"2016-06-29"},{"$f":"التقويم!M6","v":0},{"$f":"التقويم!N6","v":0},{"$f":"التقويم!O6","v":"2016-06-30"},{"$f":"التقويم!P6","v":0},{"$f":"التقويم!Q6","v":0},{"$f":"التقويم!R6","v":"2016-07-01"},{"$f":"التقويم!S6","v":0},{"$f":"التقويم!T6","v":0},{"$f":"التقويم!U6","v":"2016-07-02"}]
[null,null,{"$f":"التقويم!C7","v":""},{"$f":"التقويم!D7","v":0},{"$f":"التقويم!E7","v":0},{"$f":"التقويم!F7","v":""},{"$f":"التقويم!G7","v":0},{"$f":"التقويم!H7","v":0},{"$f":"التقويم!I7","v":""},{"$f":"التقويم!J7","v":0},{"$f":"التقويم!K7","v":0},{"$f":"التقويم!L7","v":""},{"$f":"التقويم!M7","v":0},{"$f":"التقويم!N7","v":0},{"$f":"التقويم!O7","v":""},{"$f":"التقويم!P7","v":0},{"$f":"التقويم!Q7","v":0},{"$f":"التقويم!R7","v":"حديقة المجتمع"},{"$f":"التقويم!S7","v":0},{"$f":"التقويم!T7","v":0},{"$f":"التقويم!U7","v":"حديقة المجتمع"}]
[null,null,{"$f":"التقويم!C8","v":""},{"$f":"التقويم!D8","v":"00:00:00"},{"$f":"التقويم!E8","v":"00:00:00"},{"$f":"التقويم!F8","v":""},{"$f":"التقويم!G8","v":"00:00:00"},{"$f":"التقويم!H8","v":"00:00:00"},{"$f":"التقويم!I8","v":""},{"$f":"التقويم!J8","v":"00:00:00"},{"$f":"التقويم!K8","v":"00:00:00"},{"$f":"التقويم!L8","v":""},{"$f":"التقويم!M8","v":"00:00:00"},{"$f":"التقويم!N8","v":"00:00:00"},{"$f":"التقويم!O8","v":""},{"$f":"التقويم!P8","v":"00:00:00"},{"$f":"التقويم!Q8","v":"00:00:00"},{"$f":"التقويم!R8","v":"اجتماع مجلس البلدية"},{"$f":"التقويم!S8","v":"00:00:00"},{"$f":"التقويم!T8","v":"00:00:00"},{"$f":"التقويم!U8","v":""}]
[null,null,{"$f":"التقويم!C9","v":""},{"$f":"التقويم!D9","v":0},{"$f":"التقويم!E9","v":0},{"$f":"التقويم!F9","v":""},{"$f":"التقويم!G9","v":0},{"$f":"التقويم!H9","v":0},{"$f":"التقويم!I9","v":""},{"$f":"التقويم!J9","v":0},{"$f":"التقويم!K9","v":0},{"$f":"التقويم!L9","v":""},{"$f":"التقويم!M9","v":0},{"$f":"التقويم!N9","v":0},{"$f":"التقويم!O9","v":""},{"$f":"التقويم!P9","v":0},{"$f":"التقويم!Q9","v":0},{"$f":"التقويم!R9","v":""},{"$f":"التقويم!S9","v":0},{"$f":"التقويم!T9","v":0},{"$f":"التقويم!U9","v":""}]
[null,null,{"$f":"التقويم!C10","v":""},{"$f":"التقويم!D10","v":0},{"$f":"التقويم!E10","v":0},{"$f":"التقويم!F10","v":""},{"$f":"التقويم!G10","v":0},{"$f":"التقويم!H10","v":0},{"$f":"التقويم!I10","v":""},{"$f":"التقويم!J10","v":0},{"$f":"التقويم!K10","v":0},{"$f":"التقويم!L10","v":""},{"$f":"التقويم!M10","v":0},{"$f":"التقويم!N10","v":0},{"$f":"التقويم!O10","v":""},{"$f":"التقويم!P10","v":0},{"$f":"التقويم!Q10","v":0},{"$f":"التقويم!R10","v":""},{"$f":"التقويم!S10","v":0},{"$f":"التقويم!T10","v":0},{"$f":"التقويم!U10","v":""}]
[null,null,{"$f":"التقويم!C11","v":"2016-07-03"},{"$f":"التقويم!D11","v":0},{"$f":"التقويم!E11","v":0},{"$f":"التقويم!F11","v":"2016-07-04"},{"$f":"التقويم!G11","v":0},{"$f":"التقويم!H11","v":0},{"$f":"التقويم!I11","v":"2016-07-05"},{"$f":"التقويم!J11","v":0},{"$f":"التقويم!K11","v":0},{"$f":"التقويم!L11","v":"2016-07-06"},{"$f":"التقويم!M11","v":0},{"$f":"التقويم!N11","v":0},{"$f":"التقويم!O11","v":"2016-07-07"},{"$f":"التقويم!P11","v":0},{"$f":"التقويم!Q11","v":0},{"$f":"التقويم!R11","v":"2016-07-08"},{"$f":"التقويم!S11","v":0},{"$f":"التقويم!T11","v":0},{"$f":"التقويم!U11","v":"2016-07-09"}]
[null,null,{"$f":"التقويم!C12","v":"ليلة لمشاهدة الأفلام في المنتزه"},{"$f":"التقويم!D12","v":0},{"$f":"التقويم!E12","v":0},{"$f":"التقويم!F12","v":""},{"$f":"التقويم!G12","v":0},{"$f":"التقويم!H12","v":0},{"$f":"التقويم!I12","v":""},{"$f":"التقويم!J12","v":0},{"$f":"التقويم!K12","v":0},{"$f":"التقويم!L12","v":""},{"$f":"التقويم!M12","v":0},{"$f":"التقويم!N12","v":0},{"$f":"التقويم!O12","v":""},{"$f":"التقويم!P12","v":0},{"$f":"التقويم!Q12","v":0},{"$f":"التقويم!R12","v":"اجتماع مجلس البلدية"},{"$f":"التقويم!S12","v":0},{"$f":"التقويم!T12","v":0},{"$f":"التقويم!U12","v":""}]
[null,null,{"$f":"التقويم!C13","v":""},{"$f":"التقويم!D13","v":0},{"$f":"التقويم!E13","v":0},{"$f":"التقويم!F13","v":""},{"$f":"التقويم!G13","v":0},{"$f":"التقويم!H13","v":0},{"$f":"التقويم!I13","v":""},{"$f":"التقويم!J13","v":0},{"$f":"التقويم!K13","v":0},{"$f":"التقويم!L13","v":""},{"$f":"التقويم!M13","v":0},{"$f":"التقويم!N13","v":0},{"$f":"التقويم!O13","v":""},{"$f":"التقويم!P13","v":0},{"$f":"التقويم!Q13","v":0},{"$f":"التقويم!R13","v":""},{"$f":"التقويم!S13","v":0},{"$f":"التقويم!T13","v":0},{"$f":"التقويم!U13","v":""}]
[null,null,{"$f":"التقويم!C14","v":""},{"$f":"التقويم!D14","v":0},{"$f":"التقويم!E14","v":0},{"$f":"التقويم!F14","v":""},{"$f":"التقويم!G14","v":0},{"$f":"التقويم!H14","v":0},{"$f":"التقويم!I14","v":""},{"$f":"التقويم!J14","v":0},{"$f":"التقويم!K14","v":0},{"$f":"التقويم!L14","v":""},{"$f":"التقويم!M14","v":0},{"$f":"التقويم!N14","v":0},{"$f":"التقويم!O14","v":""},{"$f":"التقويم!P14","v":0},{"$f":"التقويم!Q14","v":0},{"$f":"التقويم!R14","v":""},{"$f":"التقويم!S14","v":0},{"$f":"التقويم!T14","v":0},{"$f":"التقويم!U14","v":""}]
[null,null,{"$f":"التقويم!C15","v":""},{"$f":"التقويم!D15","v":0},{"$f":"التقويم!E15","v":0},{"$f":"التقويم!F15","v":""},{"$f":"التقويم!G15","v":0},{"$f":"التقويم!H15","v":0},{"$f":"التقويم!I15","v":""},{"$f":"التقويم!J15","v":0},{"$f":"التقويم!K15","v":0},{"$f":"التقويم!L15","v":""},{"$f":"التقويم!M15","v":0},{"$f":"التقويم!N15","v":0},{"$f":"التقويم!O15","v":""},{"$f":"التقويم!P15","v":0},{"$f":"التقويم!Q15","v":0},{"$f":"التقويم!R15","v":""},{"$f":"التقويم!S15","v":0},{"$f":"التقويم!T15","v":0},{"$f":"التقويم!U15","v":""}]
[null,null,{"$f":"التقويم!C16","v":"2016-07-10"},{"$f":"التقويم!D16","v":0},{"$f":"التقويم!E16","v":0},{"$f":"التقويم!F16","v":"2016-07-11"},{"$f":"التقويم!G16","v":0},{"$f":"التقويم!H16","v":0},{"$f":"التقويم!I16","v":"2016-07-12"},{"$f":"التقويم!J16","v":0},{"$f":"التقويم!K16","v":0},{"$f":"التقويم!L16","v":"2016-07-13"},{"$f":"التقويم!M16","v":0},{"$f":"التقويم!N16","v":0},{"$f":"التقويم!O16","v":"2016-07-14"},{"$f":"التقويم!P16","v":0},{"$f":"التقويم!Q16","v":0},{"$f":"التقويم!R16","v":"2016-07-15"},{"$f":"التقويم!S16","v":0},{"$f":"التقويم!T16","v":0},{"$f":"التقويم!U16","v":"2016-07-16"}]
[null,null,{"$f":"التقويم!C17","v":""},{"$f":"التقويم!D17","v":0},{"$f":"التقويم!E17","v":0},{"$f":"التقويم!F17","v":"غداء مع أعضاء غرفة التجارة"},{"$f":"التقويم!G17","v":0},{"$f":"التقويم!H17","v":0},{"$f":"التقويم!I17","v":"عرض التحف"},{"$f":"التقويم!J17","v":0},{"$f":"التقويم!K17","v":0},{"$f":"التقويم!L17","v":""},{"$f":"التقويم!M17","v":0},{"$f":"التقويم!N17","v":0},{"$f":"التقويم!O17","v":"ورشة عمل المجتمع"},{"$f":"التقويم!P17","v":0},{"$f":"التقويم!Q17","v":0},{"$f":"التقويم!R17","v":"اجتماع مجلس البلدية"},{"$f":"التقويم!S17","v":0},{"$f":"التقويم!T17","v":0},{"$f":"التقويم!U17","v":""}]
[null,null,{"$f":"التقويم!C18","v":""},{"$f":"التقويم!D18","v":0},{"$f":"التقويم!E18","v":0},{"$f":"التقويم!F18","v":""},{"$f":"التقويم!G18","v":0},{"$f":"التقويم!H18","v":0},{"$f":"التقويم!I18","v":""},{"$f":"التقويم!J18","v":0},{"$f":"التقويم!K18","v":0},{"$f":"التقويم!L18","v":""},{"$f":"التقويم!M18","v":0},{"$f":"التقويم!N18","v":0},{"$f":"التقويم!O18","v":""},{"$f":"التقويم!P18","v":0},{"$f":"التقويم!Q18","v":0},{"$f":"التقويم!R18","v":""},{"$f":"التقويم!S18","v":0},{"$f":"التقويم!T18","v":0},{"$f":"التقويم!U18","v":""}]
[null,null,{"$f":"التقويم!C19","v":""},{"$f":"التقويم!D19","v":0},{"$f":"التقويم!E19","v":0},{"$f":"التقويم!F19","v":""},{"$f":"التقويم!G19","v":0},{"$f":"التقويم!H19","v":0},{"$f":"التقويم!I19","v":""},{"$f":"التقويم!J19","v":0},{"$f":"التقويم!K19","v":0},{"$f":"التقويم!L19","v":""},{"$f":"التقويم!M19","v":0},{"$f":"التقويم!N19","v":0},{"$f":"التقويم!O19","v":""},{"$f":"التقويم!P19","v":0},{"$f":"التقويم!Q19","v":0},{"$f":"التقويم!R19","v":""},{"$f":"التقويم!S19","v":0},{"$f":"التقويم!T19","v":0},{"$f":"التقويم!U19","v":""}]
[null,null,{"$f":"التقويم!C20","v":""},{"$f":"التقويم!D20","v":0},{"$f":"التقويم!E20","v":0},{"$f":"التقويم!F20","v":""},{"$f":"التقويم!G20","v":0},{"$f":"التقويم!H20","v":0},{"$f":"التقويم!I20","v":""},{"$f":"التقويم!J20","v":0},{"$f":"التقويم!K20","v":0},{"$f":"التقويم!L20","v":""},{"$f":"التقويم!M20","v":0},{"$f":"التقويم!N20","v":0},{"$f":"التقويم!O20","v":""},{"$f":"التقويم!P20","v":0},{"$f":"التقويم!Q20","v":0},{"$f":"التقويم!R20","v":""},{"$f":"التقويم!S20","v":0},{"$f":"التقويم!T20","v":0},{"$f":"التقويم!U20","v":""}]
[null,null,{"$f":"التقويم!C21","v":"2016-07-17"},{"$f":"التقويم!D21","v":0},{"$f":"التقويم!E21","v":0},{"$f":"التقويم!F21","v":"2016-07-18"},{"$f":"التقويم!G21","v":0},{"$f":"التقويم!H21","v":0},{"$f":"التقويم!I21","v":"2016-07-19"},{"$f":"التقويم!J21","v":0},{"$f":"التقويم!K21","v":0},{"$f":"التقويم!L21","v":"2016-07-20"},{"$f":"التقويم!M21","v":0},{"$f":"التقويم!N21","v":0},{"$f":"التقويم!O21","v":"2016-07-21"},{"$f":"التقويم!P21","v":0},{"$f":"التقويم!Q21","v":0},{"$f":"التقويم!R21","v":"2016-07-22"},{"$f":"التقويم!S21","v":0},{"$f":"التقويم!T21","v":0},{"$f":"التقويم!U21","v":"2016-07-23"}]
[null,null,{"$f":"التقويم!C22","v":""},{"$f":"التقويم!D22","v":0},{"$f":"التقويم!E22","v":0},{"$f":"التقويم!F22","v":""},{"$f":"التقويم!G22","v":0},{"$f":"التقويم!H22","v":0},{"$f":"التقويم!I22","v":"ورشة عمل للتخطيط الاستراتيجي"},{"$f":"التقويم!J22","v":0},{"$f":"التقويم!K22","v":0},{"$f":"التقويم!L22","v":"تنظيف المنتزه"},{"$f":"التقويم!M22","v":0},{"$f":"التقويم!N22","v":0},{"$f":"التقويم!O22","v":""},{"$f":"التقويم!P22","v":0},{"$f":"التقويم!Q22","v":0},{"$f":"التقويم!R22","v":"اجتماع مجلس البلدية"},{"$f":"التقويم!S22","v":0},{"$f":"التقويم!T22","v":0},{"$f":"التقويم!U22","v":""}]
[null,null,{"$f":"التقويم!C23","v":""},{"$f":"التقويم!D23","v":0},{"$f":"التقويم!E23","v":0},{"$f":"التقويم!F23","v":""},{"$f":"التقويم!G23","v":0},{"$f":"التقويم!H23","v":0},{"$f":"التقويم!I23","v":""},{"$f":"التقويم!J23","v":0},{"$f":"التقويم!K23","v":0},{"$f":"التقويم!L23","v":""},{"$f":"التقويم!M23","v":0},{"$f":"التقويم!N23","v":0},{"$f":"التقويم!O23","v":""},{"$f":"التقويم!P23","v":0},{"$f":"التقويم!Q23","v":0},{"$f":"التقويم!R23","v":""},{"$f":"التقويم!S23","v":0},{"$f":"التقويم!T23","v":0},{"$f":"التقويم!U23","v":""}]
[null,null,{"$f":"التقويم!C24","v":""},{"$f":"التقويم!D24","v":0},{"$f":"التقويم!E24","v":0},{"$f":"التقويم!F24","v":""},{"$f":"التقويم!G24","v":0},{"$f":"التقويم!H24","v":0},{"$f":"التقويم!I24","v":""},{"$f":"التقويم!J24","v":0},{"$f":"التقويم!K24","v":0},{"$f":"التقويم!L24","v":""},{"$f":"التقويم!M24","v":0},{"$f":"التقويم!N24","v":0},{"$f":"التقويم!O24","v":""},{"$f":"التقويم!P24","v":0},{"$f":"التقويم!Q24","v":0},{"$f":"التقويم!R24","v":""},{"$f":"التقويم!S24","v":0},{"$f":"التقويم!T24","v":0},{"$f":"التقويم!U24","v":""}]
[null,null,{"$f":"التقويم!C25","v":""},{"$f":"التقويم!D25","v":0},{"$f":"التقويم!E25","v":0},{"$f":"التقويم!F25","v":""},{"$f":"التقويم!G25","v":0},{"$f":"التقويم!H25","v":0},{"$f":"التقويم!I25","v":""},{"$f":"التقويم!J25","v":0},{"$f":"التقويم!K25","v":0},{"$f":"التقويم!L25","v":""},{"$f":"التقويم!M25","v":0},{"$f":"التقويم!N25","v":0},{"$f":"التقويم!O25","v":""},{"$f":"التقويم!P25","v":0},{"$f":"التقويم!Q25","v":0},{"$f":"التقويم!R25","v":""},{"$f":"التقويم!S25","v":0},{"$f":"التقويم!T25","v":0},{"$f":"التقويم!U25","v":""}]
[null,null,{"$f":"التقويم!C26","v":"2016-07-24"},{"$f":"التقويم!D26","v":0},{"$f":"التقويم!E26","v":0},{"$f":"التقويم!F26","v":"2016-07-25"},{"$f":"التقويم!G26","v":0},{"$f":"التقويم!H26","v":0},{"$f":"التقويم!I26","v":"2016-07-26"},{"$f":"التقويم!J26","v":0},{"$f":"التقويم!K26","v":0},{"$f":"التقويم!L26","v":"2016-07-27"},{"$f":"التقويم!M26","v":0},{"$f":"التقويم!N26","v":0},{"$f":"التقويم!O26","v":"2016-07-28"},{"$f":"التقويم!P26","v":0},{"$f":"التقويم!Q26","v":0},{"$f":"التقويم!R26","v":"2016-07-29"},{"$f":"التقويم!S26","v":0},{"$f":"التقويم!T26","v":0},{"$f":"التقويم!U26","v":"2016-07-30"}]
[null,null,{"$f":"التقويم!C27","v":""},{"$f":"التقويم!D27","v":0},{"$f":"التقويم!E27","v":0},{"$f":"التقويم!F27","v":""},{"$f":"التقويم!G27","v":0},{"$f":"التقويم!H27","v":0},{"$f":"التقويم!I27","v":"جولة في وسط المدينة مشياً على الأقدام"},{"$f":"التقويم!J27","v":0},{"$f":"التقويم!K27","v":0},{"$f":"التقويم!L27","v":""},{"$f":"التقويم!M27","v":0},{"$f":"التقويم!N27","v":0},{"$f":"التقويم!O27","v":""},{"$f":"التقويم!P27","v":0},{"$f":"التقويم!Q27","v":0},{"$f":"التقويم!R27","v":"اجتماع مجلس البلدية"},{"$f":"التقويم!S27","v":0},{"$f":"التقويم!T27","v":0},{"$f":"التقويم!U27","v":""}]
[null,null,{"$f":"التقويم!C28","v":""},{"$f":"التقويم!D28","v":0},{"$f":"التقويم!E28","v":0},{"$f":"التقويم!F28","v":""},{"$f":"التقويم!G28","v":0},{"$f":"التقويم!H28","v":0},{"$f":"التقويم!I28","v":"التنزه"},{"$f":"التقويم!J28","v":0},{"$f":"التقويم!K28","v":0},{"$f":"التقويم!L28","v":""},{"$f":"التقويم!M28","v":0},{"$f":"التقويم!N28","v":0},{"$f":"التقويم!O28","v":""},{"$f":"التقويم!P28","v":0},{"$f":"التقويم!Q28","v":0},{"$f":"التقويم!R28","v":""},{"$f":"التقويم!S28","v":0},{"$f":"التقويم!T28","v":0},{"$f":"التقويم!U28","v":""}]
[null,null,{"$f":"التقويم!C29","v":""},{"$f":"التقويم!D29","v":0},{"$f":"التقويم!E29","v":0},{"$f":"التقويم!F29","v":""},{"$f":"التقويم!G29","v":0},{"$f":"التقويم!H29","v":0},{"$f":"التقويم!I29","v":""},{"$f":"التقويم!J29","v":0},{"$f":"التقويم!K29","v":0},{"$f":"التقويم!L29","v":""},{"$f":"التقويم!M29","v":0},{"$f":"التقويم!N29","v":0},{"$f":"التقويم!O29","v":""},{"$f":"التقويم!P29","v":0},{"$f":"التقويم!Q29","v":0},{"$f":"التقويم!R29","v":""},{"$f":"التقويم!S29","v":0},{"$f":"التقويم!T29","v":0},{"$f":"التقويم!U29","v":""}]
[null,null,{"$f":"التقويم!C30","v":""},{"$f":"التقويم!D30","v":0},{"$f":"التقويم!E30","v":0},{"$f":"التقويم!F30","v":""},{"$f":"التقويم!G30","v":0},{"$f":"التقويم!H30","v":0},{"$f":"التقويم!I30","v":""},{"$f":"التقويم!J30","v":0},{"$f":"التقويم!K30","v":0},{"$f":"التقويم!L30","v":""},{"$f":"التقويم!M30","v":0},{"$f":"التقويم!N30","v":0},{"$f":"التقويم!O30","v":""},{"$f":"التقويم!P30","v":0},{"$f":"التقويم!Q30","v":0},{"$f":"التقويم!R30","v":""},{"$f":"التقويم!S30","v":0},{"$f":"التقويم!T30","v":0},{"$f":"التقويم!U30","v":""}]
[null,null,{"$f":"التقويم!C31","v":"2016-07-31"},{"$f":"التقويم!D31","v":0},{"$f":"التقويم!E31","v":0},{"$f":"التقويم!F31","v":"2016-08-01"},null,null,{"$f":"التقويم!I31","v":"ملاحظات:"}]
[null,null,{"$f":"التقويم!C32","v":""},{"$f":"التقويم!D32","v":0},{"$f":"التقويم!E32","v":0},{"$f":"التقويم!F32","v":""}]
[null,null,{"$f":"التقويم!C33","v":""},{"$f":"التقويم!D33","v":0},{"$f":"التقويم!E33","v":0},{"$f":"التقويم!F33","v":""}]
[null,null,{"$f":"التقويم!C34","v":""},{"$f":"التقويم!D34","v":0},{"$f":"التقويم!E34","v":0},{"$f":"التقويم!F34","v":""}]
[null,null,{"$f":"التقويم!C35","v":""},{"$f":"التقويم!D35","v":0},{"$f":"التقويم!E35","v":0},{"$f":"التقويم!F35","v":""}]

{"sheet":"المسؤول","index":3,"n_rows":14,"n_cols":3,"rows_kept":14,"hidden":true}
[]
[null,"الشهر","الرقم"]
[null,"يناير",1]
[null,"فبراير",2]
[null,"مارس",3]
[null,"أبريل",4]
[null,"مايو",5]
[null,"يونيو",6]
[null,"يوليو",7]
[null,"أغسطس",8]
[null,"سبتمبر",9]
[null,"أكتوبر",10]
[null,"نوفمبر",11]
[null,"ديسمبر",12]